bitfinex/quotes_SOLUSD_20250514
["timestamp","ask_amount","ask_price","bid_price","bid_amount"]
[1747181046659,0.14216157,183.84,183.72,26.0]
[1747181046841,19.4,183.84,183.72,26.0]
[1747181047030,19.4,183.84,183.73,0.14216157]
[1747181047268,19.4,183.84,183.73,26.14216157]
[1747181047458,0.42648471,183.83,183.7,8.54638245]
[1747181047961,19.4,183.84,183.7,8.54638245]
[1747181047962,0.42648471,183.81,183.7,8.54638245]
[1747181048165,0.42648471,183.81,183.73,26.0]
[1747181048759,0.42648471,183.81,183.72,26.0]
[1747181048954,0.42648471,183.81,183.69,19.34]
[1747181049339,0.42648471,183.81,183.72,26.0]
[1747181050053,19.04243742,183.8,183.72,26.0]
[1747181050454,6.3647,183.78,183.69,19.34]
[1747181050649,0.42648471,183.76,183.69,19.34]
[1747181050969,0.42648471,183.76,183.72,26.0]
[1747181051140,0.42648471,183.76,183.65,19.46]
[1747181051341,19.07613357,183.76,183.65,19.46]
[1747181051950,19.07613357,183.76,183.66,26.0]
[1747181052156,19.07613357,183.74,183.59,19.46]
[1747181052570,19.07613357,183.74,183.62,26.0]
[1747181053259,46.26353888,183.73,183.59,19.46]
[1747181053450,46.26353888,183.73,183.62,26.0]
[1747181053645,19.07613357,183.72,183.62,26.0]
[1747181054064,19.07613357,183.72,183.59,19.46]
[1747181054268,19.07613357,183.7,183.55,5.15943287]
[1747181054466,19.07613357,183.68,183.55,5.15943287]
[1747181054862,19.07613357,183.68,183.58,26.0]
[1747181055353,0.42648471,183.66,183.55,5.15943287]
[1747181055876,19.07613357,183.64,183.55,5.15943287]
[1747181056875,6.3733,183.63,183.55,5.15943287]
[1747181057061,19.96648471,183.62,183.55,5.15943287]
[1747181057463,19.06214258,183.61,183.55,5.15943287]
[1747181058391,0.42648471,183.6,183.55,5.15943287]
[1747181059584,19.06421917,183.59,183.55,5.15943287]
[1747181059966,0.42648471,183.58,183.41,1.6375]
[1747181060289,19.07613357,183.58,183.46,19.46]
[1747181060580,19.07613357,183.54,183.42,1.36240766]
[1747181060792,0.42648471,183.52,183.42,1.36240766]
[1747181060961,0.42648471,183.52,183.44,26.0]
[1747181061162,0.42648471,183.52,183.42,1.36240766]
[1747181061387,19.07613357,183.52,183.45,1.36240766]
[1747181061679,19.07613357,183.5,183.45,1.36240766]
[1747181061887,19.07613357,183.5,183.37,1.36240766]
[1747181062192,46.31900168,183.51,183.37,1.36240766]
[1747181062193,19.07613357,183.48,183.37,1.36240766]
[1747181062493,0.42648471,183.46,183.37,1.36240766]
[1747181062791,19.07613357,183.44,183.37,1.36240766]
[1747181063079,19.07613357,183.44,183.34,1.36240766]
[1747181063080,0.42648471,183.44,183.34,1.36240766]
[1747181063283,0.42648471,183.44,183.36,26.0]
[1747181063696,0.42648471,183.42,183.36,26.0]
[1747181063986,0.42648471,183.42,183.34,1.36240766]
[1747181064179,0.42648471,183.42,183.35,1.36240766]
[1747181065389,5.45226541,183.41,183.35,1.36240766]
[1747181065589,19.08292895,183.41,183.33,1.36240766]
[1747181065959,0.42648471,183.4,183.33,1.36240766]
[1747181066259,19.07613357,183.4,183.33,1.36240766]
[1747181066791,19.07613357,183.4,183.31,26.0]
[1747181067357,0.42648471,183.4,183.31,26.0]
[1747181067564,19.68,183.41,183.33,26.0]
[1747181067771,44.69914886,183.47,183.33,26.0]
[1747181067772,19.66,183.42,183.33,26.0]
[1747181067960,19.66,183.42,183.34,1.36240766]
[1747181068157,19.07876804,183.45,183.34,1.36240766]
[1747181068416,19.68,183.44,183.34,1.36240766]
[1747181068584,5.45107658,183.45,183.34,1.36240766]
[1747181068886,5.4507997,183.46,183.35,1.50456923]
[1747181069062,6.5695,183.47,183.36,1.09027235]
[1747181069063,12.02007453,183.47,183.36,1.09027235]
[1747181069271,12.02007453,183.47,183.4,26.0]
[1747181069661,12.02007453,183.47,183.41,26.0]
[1747181070084,12.02007453,183.47,183.37,19.48]
[1747181070283,19.66,183.48,183.37,19.48]
[1747181070284,13.62346656,183.51,183.41,26.0]
[1747181070486,5.44929431,183.51,183.41,26.0]
[1747181070859,5.44929431,183.51,183.42,1.36276723]
[1747181071871,5.44929431,183.51,183.43,1.36276723]
[1747181072585,5.44929431,183.51,183.44,1.36276723]
[1747181073285,25.9597,183.52,183.47,26.0]
[1747181073470,19.64,183.52,183.47,26.0]
[1747181073663,19.64,183.55,183.47,26.0]
[1747181074787,5.44840361,183.54,183.47,26.0]
[1747181075183,0.42648471,183.53,183.43,26.0]
[1747181075374,19.07613357,183.53,183.43,26.0]
[1747181075572,19.07613357,183.53,183.41,19.48]
[1747181075783,19.07613357,183.53,183.42,26.0]
[1747181075966,19.07613357,183.53,183.41,19.48]
[1747181076158,19.07613357,183.53,183.36,19.48]
[1747181076693,19.07613357,183.53,183.39,26.0]
[1747181076885,19.07613357,183.51,183.39,26.0]
[1747181077189,19.07613357,183.49,183.33,19.48]
[1747181077385,19.07613357,183.47,183.33,19.48]
[1747181077586,19.07613357,183.47,183.36,26.0]
[1747181077793,26.0,183.44,183.29,1.6215]
[1747181077963,19.07613357,183.41,183.28,8.26396851]
[1747181078301,0.42648471,183.38,183.28,8.26396851]
[1747181078600,0.42648471,183.39,183.28,8.26396851]
[1747181078892,19.08605081,183.38,183.31,26.0]
[1747181079257,19.08605081,183.38,183.28,8.26396851]
[1747181079656,0.42648471,183.37,183.28,8.26396851]
[1747181080083,19.07613357,183.37,183.28,8.26396851]
[1747181080274,19.07613357,183.37,183.29,26.0]
[1747181080783,19.08813263,183.36,183.28,8.26396851]
[1747181081283,19.08813263,183.36,183.28,34.26396851]
[1747181081667,0.42648471,183.35,183.28,34.26396851]
[1747181082083,0.42648471,183.35,183.28,8.26396851]
[1747181082787,5.45434711,183.34,183.28,34.26396851]
[1747181083160,5.45434711,183.34,183.31,26.0]
[1747181084572,0.28432314,183.33,183.28,34.26396851]
[1747181084773,5.45434711,183.34,183.28,34.26396851]
[1747181084981,5.45434711,183.34,183.31,26.0]
[1747181085487,20.04,183.39,183.31,26.0]
[1747181085691,13.63154621,183.4,183.31,26.0]
[1747181086592,5.45196816,183.42,183.32,48.31408784]
[1747181086775,5.45196816,183.42,183.32,47.223385]
[1747181087086,19.08188856,183.42,183.32,47.223385]
[1747181087497,19.08188856,183.42,183.32,45.86]
[1747181088199,5.45196816,183.42,183.32,51.31465626]
[1747181088395,5.45196816,183.42,183.33,1.36331778]
[1747181088992,5.45196816,183.42,183.34,1.36331778]
[1747181089167,5.45137374,183.44,183.36,26.0]
[1747181089764,5.45137374,183.44,183.37,26.0]
[1747181090368,5.45137374,183.44,183.35,26.0]
[1747181090917,19.0798081,183.44,183.35,26.0]
[1747181091304,5.45107658,183.45,183.35,31.4538774]
[1747181091591,19.07876804,183.45,183.37,26.0]
[1747181092091,0.42648471,183.44,183.35,5.16713875]
[1747181092293,19.07613357,183.44,183.35,5.16713875]
[1747181092591,38.93613357,183.44,183.35,5.16713875]
[1747181093391,19.07613357,183.42,183.35,5.16713875]
[1747181095691,0.14216157,183.4,183.35,5.16713875]
[1747181095900,20.34,183.39,183.35,5.16713875]
[1747181097696,5.45315737,183.38,183.35,5.16713875]
[1747181098990,6.49,183.37,183.35,5.16713875]
[1747181099199,0.28432314,183.36,183.29,19.86]
[1747181099401,0.28432314,183.36,183.28,0.20235466]
[1747181099578,19.0891737,183.35,183.3,1.36391142]
[1747181099905,20.7119737,183.35,183.3,1.36391142]
[1747181100396,20.7119737,183.35,183.28,26.20235466]
[1747181100575,0.28432314,183.34,183.28,26.20235466]
[1747181100779,0.42648471,183.34,183.28,0.20235466]
[1747181101500,5.45404963,183.35,183.28,26.20235466]
[1747181101682,0.42648471,183.35,183.28,26.20235466]
[1747181101888,0.42648471,183.35,183.28,0.20235466]
[1747181102101,19.07613357,183.35,183.28,0.20235466]
[1747181102689,20.59703357,183.31,183.28,0.20235466]
[1747181102894,20.59703357,183.31,183.15,19.88]
[1747181102895,0.42648471,183.29,183.15,19.88]
[1747181103111,0.42648471,183.29,183.18,26.0]
[1747181103414,19.07613357,183.29,183.18,26.0]
[1747181103624,19.07613357,183.27,183.15,19.88]
[1747181103789,6.0864,183.26,183.11,8.42638571]
[1747181103987,19.07613357,183.25,183.11,8.42638571]
[1747181104423,0.42648471,183.23,183.11,8.42638571]
[1747181104718,20.24,183.22,183.14,26.0]
[1747181105287,20.24,183.27,183.14,26.0]
[1747181105490,25.69613269,183.28,183.16,26.14216157]
[1747181105711,25.69613269,183.28,183.2,25.5]
[1747181106719,25.69613269,183.28,183.21,2.02152731]
[1747181106892,20.24,183.28,183.21,7.47955351]
[1747181107098,25.69614492,183.28,183.21,7.47955351]
[1747181107380,25.69614492,183.28,183.21,2.02152731]
[1747181107588,25.69614492,183.28,183.17,19.88]
[1747181107786,39.33647665,183.28,183.17,19.88]
[1747181108006,0.42648471,183.27,183.2,26.0]
[1747181108387,0.42648471,183.27,183.18,26.0]
[1747181108694,19.0985485,183.26,183.2,26.0]
[1747181109101,19.0985485,183.26,183.18,26.0]
[1747181109297,0.28432314,183.25,183.15,26.0]
[1747181109501,0.42648471,183.25,183.15,26.0]
[1747181109706,19.07613357,183.25,183.12,20.22]
[1747181109907,19.07613357,183.25,183.15,26.0]
[1747181110114,19.07613357,183.25,183.12,20.22]
[1747181110299,19.07613357,183.25,183.15,26.0]
[1747181110497,19.07613357,183.23,183.08,205.7981]
[1747181110704,19.07613357,183.23,183.09,1.36511898]
[1747181110898,46.39231524,183.22,183.11,26.0]
[1747181111113,0.42648471,183.2,183.09,1.36511898]
[1747181111298,0.42648471,183.2,183.11,26.0]
[1747181111501,0.42648471,183.2,183.09,1.36511898]
[1747181111699,0.42648471,183.2,183.11,26.0]
[1747181112419,0.42648471,183.2,183.08,1.5581]
[1747181112603,20.4,183.21,183.08,1.5581]
[1747181112802,5.45851528,183.2,183.11,26.0]
[1747181113110,19.10480348,183.2,183.12,26.0]
[1747181113303,0.42648471,183.19,183.12,26.0]
[1747181113506,39.31613357,183.19,183.03,1.6073]
[1747181113713,39.31613357,183.19,183.06,26.0]
[1747181114103,39.31613357,183.19,183.03,1.6073]
[1747181114425,39.31613357,183.19,183.05,26.0]
[1747181114794,19.10688939,183.18,183.05,26.0]
[1747181114998,19.10688939,183.18,183.06,26.0]
[1747181115601,20.3,183.17,183.07,26.0]
[1747181116604,0.42648471,183.15,183.01,20.24]
[1747181117016,19.11106257,183.14,183.04,26.0]
[1747181117322,19.11106257,183.14,183.01,20.24]
[1747181117841,0.42648471,183.12,182.97,5.17624743]
[1747181118135,6.6247,183.13,183.0,26.0]
[1747181118302,6.6247,183.13,183.01,26.0]
[1747181118633,26.9447,183.13,183.02,1.36561699]
[1747181118802,6.6247,183.13,183.03,1.092332]
[1747181119003,5.45940929,183.17,183.08,26.0]
[1747181119214,5.45940929,183.17,183.1,26.0]
[1747181120129,5.45940929,183.17,183.08,26.0]
[1747181121009,5.45940929,183.17,183.12,26.0]
[1747181121225,6.2506,183.18,183.12,26.0]
[1747181122225,6.2506,183.18,183.1,46.24]
[1747181122430,11.70977868,183.18,183.1,51.70127824]
[1747181122908,11.70977868,183.18,183.13,26.0]
[1747181123109,11.70977868,183.18,183.1,51.70127824]
[1747181123728,20.26,183.2,183.1,51.70127824]
[1747181123946,20.26,183.21,183.13,26.0]
[1747181124238,20.26,183.21,183.1,46.24]
[1747181124619,20.26,183.21,183.1,51.70134497]
[1747181125134,20.26,183.21,183.1,46.24]
[1747181125533,20.26,183.21,183.1,51.70142337]
[1747181125740,5.45851528,183.2,183.1,46.24]
[1747181126514,19.10480348,183.2,183.1,51.70149572]
[1747181127136,19.10480348,183.2,183.1,46.24]
[1747181128147,19.10480348,183.2,183.1,51.70140974]
[1747181128318,5.45851528,183.2,183.13,26.0]
[1747181129042,5.45851528,183.2,183.1,25.70140974]
[1747181129344,19.10480348,183.2,183.1,20.24]
[1747181132346,45.10480348,183.2,183.06,5.46268436]
[1747181132533,72.39737989,183.2,183.05,20.24]
[1747181132728,1.5478,183.19,183.05,20.24]
[1747181132931,26.0,183.17,183.05,20.24]
[1747181133157,6.348,183.16,183.05,20.24]
[1747181133820,6.348,183.16,183.02,5.17532684]
[1747181134028,19.11001911,183.15,183.02,5.17532684]
[1747181134246,20.18,183.14,183.02,10.63914099]
[1747181134423,20.18,183.14,183.02,11.73151015]
[1747181134618,25.64000546,183.15,183.03,1.79198241]
[1747181134843,25.64000546,183.15,183.05,0.42648471]
[1747181135738,25.64000546,183.15,183.05,0.14216157]
[1747181135955,25.64000546,183.15,183.06,1.3654977]
[1747181137058,25.64000546,183.15,183.04,5.4632384]
[1747181137059,25.64000546,183.15,183.07,27.3654977]
[1747181137226,5.46000546,183.15,183.07,1.3654977]
[1747181137553,19.11001911,183.15,183.07,1.3654977]
[1747181138331,19.11001911,183.15,183.03,26.0]
[1747181138529,19.11001911,183.15,183.05,26.0]
[1747181138530,20.22,183.14,183.05,26.0]
[1747181138929,19.11210614,183.13,183.06,1.36552871]
[1747181139760,19.11210614,183.13,183.07,1.36552871]
[1747181140962,19.11210614,183.13,183.06,1.36552871]
[1747181141781,19.11210614,183.13,183.07,3.39092798]
[1747181141782,46.41511493,183.13,183.07,3.39092798]
[1747181142578,46.41511493,183.13,183.07,1.36552871]
[1747181142960,46.41511493,183.13,183.02,31.17532684]
[1747181143159,19.11210614,183.13,183.05,26.0]
[1747181143354,20.2,183.12,183.05,26.0]
[1747181143761,20.2,183.12,183.06,1.36560678]
[1747181144282,20.2,183.12,183.07,2.02917688]
[1747181144450,20.2,183.12,183.08,1.36560678]
[1747181145464,5.46119818,183.11,183.03,26.0]
[1747181145860,5.46119818,183.11,183.04,2.03120996]
[1747181146168,19.11419364,183.11,183.04,2.03120996]
[1747181146373,19.11419364,183.11,183.05,26.0]
[1747181146672,19.11419364,183.11,183.06,2.03120996]
[1747181147854,19.11419364,183.11,183.04,2.03120996]
[1747181148868,39.19419364,183.11,183.05,2.03120996]
[1747181149076,25.54119818,183.11,183.05,2.03120996]
[1747181149457,25.54119818,183.11,183.06,2.03120996]
[1747181150053,13.6511941,183.14,183.06,2.03120996]
[1747181150255,13.6511941,183.14,183.03,31.46346914]
[1747181150256,20.06,183.13,183.07,2.03120996]
[1747181150858,20.06,183.13,183.06,2.03120996]
[1747181151365,20.06,183.13,183.07,2.03120996]
[1747181151976,20.06,183.13,183.04,2.03120996]
[1747181152171,19.11314984,183.12,183.04,2.03120996]
[1747181152474,46.41764962,183.12,183.04,2.03120996]
[1747181152804,1.5563,183.11,183.04,2.03120996]
[1747181153097,1.5563,183.11,183.05,2.03120996]
[1747181153098,19.07613357,183.09,183.05,2.03120996]
[1747181153384,19.07613357,183.07,182.93,8.42638571]
[1747181153549,20.08,183.06,182.93,8.42638571]
[1747181153753,20.08,183.06,182.96,26.0]
[1747181154063,0.42648471,183.05,182.93,8.42638571]
[1747181154270,0.14216157,183.02,182.94,1.36641903]
[1747181154969,1.094,183.03,182.94,1.36641903]
[1747181155152,20.1,183.02,182.94,1.36641903]
[1747181155357,20.1,183.02,182.96,26.0]
[1747181156180,5.46418228,183.01,182.97,1.36641903]
[1747181156856,25.56394299,183.02,182.97,1.36641903]
[1747181157185,25.56394299,183.02,182.98,1.36641903]
[1747181157876,25.56394299,183.02,182.99,1.36641903]
[1747181158985,25.56394299,183.02,183.0,1.36641903]
[1747181159357,6.2559,183.04,183.0,27.36641903]
[1747181159776,11.71926664,183.04,183.0,1.36641903]
[1747181160084,11.71926664,183.04,183.01,1.36641903]
[1747181160676,11.71926664,183.04,182.96,26.0]
[1747181161356,11.71926664,183.04,182.97,26.0]
[1747181161556,25.37748342,183.04,182.97,26.0]
[1747181162065,25.37748342,183.04,182.98,1.3662026]
[1747181163490,25.37748342,183.04,182.99,1.3662026]
[1747181163894,11.71926664,183.04,182.99,1.3662026]
[1747181164188,11.71926664,183.04,182.96,5.46558517]
[1747181164189,5.46268982,183.06,183.01,25.0]
[1747181164584,5.46209307,183.08,183.01,25.0]
[1747181164775,5.46209307,183.08,183.0,1.3662026]
[1747181165371,5.46209307,183.08,183.0,6.83058797]
[1747181165573,13.65186492,183.13,183.01,0.42648471]
[1747181165869,33.87186492,183.13,183.01,0.42648471]
[1747181166082,33.87186492,183.13,183.03,26.0]
[1747181166471,5.46089995,183.12,183.03,26.0]
[1747181166788,6.2789,183.19,183.07,0.14216157]
[1747181166975,20.2,183.16,183.1,26.0]
[1747181167769,20.2,183.16,183.08,27.3662026]
[1747181167976,20.2,183.16,183.09,1.36543532]
[1747181168305,19.11001911,183.15,183.09,1.36543532]
[1747181168474,19.11001911,183.15,183.05,26.0]
[1747181169008,19.11001911,183.15,183.06,1.36555359]
[1747181169563,19.11001911,183.15,183.07,1.36555359]
[1747181169766,5.46000546,183.15,183.07,27.36555359]
[1747181169972,5.45940929,183.17,183.07,163.66555359]
[1747181170268,19.10793251,183.17,183.08,1.36528398]
[1747181170597,19.10793251,183.17,183.07,161.66555359]
[1747181171091,19.10793251,183.17,183.07,25.36555359]
[1747181171278,46.40497896,183.17,183.04,1.5431]
[1747181172108,0.42648471,183.16,183.05,26.0]
[1747181172266,46.41004641,183.15,183.05,26.0]
[1747181174880,46.41004641,183.15,182.99,1.6089]
[1747181175063,6.5377,183.14,182.99,1.6089]
[1747181175268,6.5377,183.14,183.0,0.28432314]
[1747181175501,20.22,183.13,183.02,26.0]
[1747181175870,20.22,183.12,183.02,26.0]
[1747181176067,20.22,183.12,183.03,26.0]
[1747181176575,5.46119818,183.11,183.03,26.0]
[1747181177093,19.11419364,183.11,183.03,26.0]
[1747181178113,5.46119818,183.11,183.03,26.0]
[1747181178487,5.46119818,183.11,183.03,31.46356739]
[1747181179215,25.66060175,183.13,183.03,31.46356739]
[1747181179625,5.46060175,183.13,183.03,31.46356739]
[1747181179796,20.18870323,183.14,183.03,31.46356739]
[1747181179797,11.99803936,183.14,183.04,0.42648471]
[1747181179993,5.46033936,183.14,183.04,0.42648471]
[1747181180219,5.46033936,183.14,183.07,26.0]
[1747181180619,5.46033936,183.14,183.07,31.46232787]
[1747181181822,11.89535137,183.19,183.08,1.5669]
[1747181182001,5.45885137,183.19,183.12,26.0]
[1747181182522,20.14,183.2,183.13,26.0]
[1747181182695,11.89385305,183.24,183.14,0.42648471]
[1747181183002,5.45735305,183.24,183.14,0.42648471]
[1747181183716,19.09959072,183.25,183.14,5.46000548]
[1747181183887,19.09959072,183.25,183.17,26.0]
[1747181184431,5.45702592,183.25,183.17,27.5502]
[1747181185001,5.45702592,183.25,183.17,1.5502]
[1747181185206,19.09959072,183.25,183.17,1.5502]
[1747181185794,5.4564304,183.27,183.19,26.0]
[1747181186001,25.5564304,183.27,183.19,26.0]
[1747181186618,39.1975064,183.27,183.2,26.0]
[1747181187208,39.1975064,183.27,183.17,1.5502]
[1747181187423,39.1975064,183.27,183.19,26.0]
[1747181187726,13.63881439,183.31,183.21,5.45821734]
[1747181187936,5.45464462,183.33,183.24,26.0]
[1747181188232,20.06,183.32,183.24,26.0]
[1747181190521,5.45523975,183.31,183.24,26.0]
[1747181191025,5.45523975,183.31,183.23,26.0]
[1747181191903,5.45523975,183.31,183.24,26.0]
[1747181192108,19.09333914,183.31,183.23,26.0]
[1747181193634,19.09333914,183.31,183.22,26.0]
[1747181194519,19.09333914,183.31,183.2,31.45836609]
[1747181195039,5.45523975,183.31,183.21,0.42648471]
[1747181196214,5.45523975,183.31,183.25,26.0]
[1747181197008,5.45464462,183.33,183.25,26.0]
[1747181198539,19.09125619,183.33,183.27,26.0]
[1747181198729,19.09125619,183.33,183.24,20.1]
[1747181198936,19.09125619,183.33,183.22,136.3]
[1747181199319,19.09125619,183.33,183.25,26.0]
[1747181200419,1.094,183.3,183.17,1.5502]
[1747181200625,6.2886,183.28,183.17,1.5502]
[1747181200840,20.04,183.27,183.16,26.0]
[1747181201024,20.04,183.27,183.13,20.0]
[1747181201209,16.2,183.26,183.13,20.0]
[1747181201416,16.2,183.26,183.16,26.0]
[1747181201630,6.2886,183.28,183.16,26.0]
[1747181201822,20.02,183.27,183.13,20.0]
[1747181202228,19.0985485,183.26,183.13,20.0]
[1747181202935,19.0985485,183.26,183.16,26.0]
[1747181203238,20.06,183.25,183.16,26.0]
[1747181203437,20.06,183.25,183.14,26.0]
[1747181203742,20.06,183.25,183.13,20.0]
[1747181204038,20.06,183.25,183.13,46.0]
[1747181204233,19.10063304,183.24,183.13,46.0]
[1747181205043,5.45732372,183.24,183.16,26.0]
[1747181205351,19.10063304,183.24,183.16,26.0]
[1747181205528,19.10063304,183.24,183.15,26.0]
[1747181205734,19.10063304,183.24,183.13,20.0]
[1747181205919,1.094,183.21,183.08,6.86287805]
[1747181206115,17.294,183.21,183.11,26.0]
[1747181206533,19.10480348,183.2,183.11,26.0]
[1747181206741,20.08,183.19,183.11,26.0]
[1747181207124,5.45851528,183.2,183.11,26.0]
[1747181207323,5.45851528,183.2,183.11,31.46113052]
[1747181208360,6.1167,183.23,183.12,0.28432314]
[1747181208520,6.1167,183.23,183.15,26.0]
[1747181208726,5.45734017,183.24,183.17,26.0]
[1747181209253,5.4564304,183.27,183.17,26.0]
[1747181209462,5.4564304,183.27,183.18,1.5706]
[1747181209755,5.4564304,183.27,183.18,27.5706]
[1747181210841,5.4564304,183.27,183.22,26.0]
[1747181211551,5.4564304,183.27,183.19,26.0]
[1747181212751,5.4564304,183.27,183.18,26.0]
[1747181213061,19.0975064,183.27,183.18,26.0]
[1747181213451,5.4564304,183.27,183.18,26.0]
[1747181214769,19.0975064,183.27,183.17,26.0]
[1747181215354,19.0975064,183.27,183.18,26.0]
[1747181215866,19.0975064,183.27,183.17,26.0]
[1747181216068,46.37965841,183.27,183.17,26.0]
[1747181216578,19.0975064,183.27,183.17,26.0]
[1747181217079,16.62648471,183.26,183.11,5.46116115]
[1747181217372,16.2,183.25,183.11,5.46116115]
[1747181217548,7.2428,183.24,183.1,21.5477]
[1747181217750,7.2428,183.24,183.1,27.00905638]
[1747181218980,19.10167548,183.23,183.13,26.0]
[1747181220182,0.42648471,183.22,183.1,20.0]
[1747181220346,6.1484,183.2,183.06,5.46265126]
[1747181220677,6.1484,183.2,183.05,21.5833]
[1747181220857,6.1484,183.2,183.08,26.0]
[1747181221672,26.1484,183.2,183.08,26.0]
[1747181222078,5.45881325,183.19,183.12,26.0]
[1747181223379,6.1484,183.2,183.12,26.0]
[1747181223578,6.3444,183.24,183.13,0.14216157]
[1747181223742,6.3444,183.24,183.16,26.0]
[1747181223950,6.3444,183.24,183.16,31.45964735]
[1747181224163,6.3444,183.24,183.18,26.0]
[1747181224860,5.45709188,183.25,183.18,26.0]
[1747181225075,7.0942,183.28,183.19,1.0914461]
[1747181225076,6.0002,183.28,183.19,1.0914461]
[1747181225263,11.45645145,183.28,183.19,20.28432314]
[1747181225848,6.0002,183.28,183.19,20.28432314]
[1747181226178,6.0002,183.28,183.23,26.0]
[1747181226356,1.094,183.32,183.23,26.0]
[1747181226357,5.45498383,183.32,183.23,26.0]
[1747181227680,5.45498383,183.32,183.24,26.0]
[1747181228680,11.92081158,183.33,183.24,26.0]
[1747181228968,11.92085785,183.33,183.24,27.611]
[1747181229579,11.92085785,183.33,183.28,26.0]
[1747181229870,11.92085785,183.33,183.24,27.611]
[1747181230073,5.45407896,183.35,183.25,0.42648471]
[1747181230279,5.45345476,183.37,183.29,26.0]
[1747181231275,5.45345476,183.37,183.29,31.45568051]
[1747181231460,5.45345476,183.37,183.29,26.0]
[1747181231773,5.45345476,183.37,183.3,26.0]
[1747181232677,5.45345476,183.37,183.29,26.0]
[1747181233463,5.45345476,183.37,183.29,31.45583323]
[1747181234685,5.45345476,183.37,183.29,26.0]
[1747181235661,19.08709166,183.37,183.29,26.0]
[1747181235848,19.08709166,183.37,183.26,20.0]
[1747181236052,19.08709166,183.37,183.29,26.0]
[1747181236365,11.74028975,183.38,183.29,26.0]
[1747181236870,5.4529056,183.39,183.3,6.97271319]
[1747181237052,5.4529056,183.39,183.33,26.0]
[1747181237785,5.4529056,183.39,183.32,26.0]
[1747181238878,19.08292895,183.41,183.32,26.0]
[1747181239688,19.08292895,183.41,183.28,20.02]
[1747181239884,19.08292895,183.41,183.31,26.0]
[1747181240080,1.094,183.39,183.24,1.611]
[1747181240289,0.14216157,183.37,183.25,20.04]
[1747181240503,19.94,183.36,183.28,26.0]
[1747181241114,19.0891737,183.35,183.25,20.04]
[1747181241473,19.0891737,183.35,183.28,26.0]
[1747181242499,5.45404963,183.35,183.28,26.0]
[1747181243577,5.45345476,183.37,183.28,26.0]
[1747181243783,19.08709166,183.37,183.28,26.0]
[1747181244283,5.45345476,183.37,183.28,26.0]
[1747181244464,6.4011,183.38,183.29,1.5172512]
[1747181244667,19.88,183.42,183.32,26.0]
[1747181244874,11.66350784,183.43,183.36,26.0]
[1747181245771,11.66350784,183.43,183.37,26.0]
[1747181246987,11.66350784,183.43,183.36,26.0]
[1747181247487,25.29268518,183.43,183.36,26.0]
[1747181248696,0.28432314,183.42,183.27,41.3602]
[1747181248875,19.07613357,183.42,183.27,41.3602]
[1747181249279,19.07613357,183.42,183.3,26.0]
[1747181249481,0.14216157,183.39,183.27,20.04]
[1747181249684,0.14216157,183.37,183.27,20.04]
[1747181249886,0.14216157,183.37,183.28,26.0]
[1747181250084,0.28432314,183.35,183.22,21.6727]
[1747181250271,0.28432314,183.35,183.22,20.04]
[1747181250471,1.094,183.33,183.22,20.04]
[1747181250672,1.094,183.33,183.25,26.0]
[1747181250872,1.094,183.33,183.22,20.04]
[1747181251072,0.42648471,183.32,183.18,5.76321697]
[1747181251279,19.88,183.31,183.21,26.0]
[1747181251490,0.14216157,183.3,183.18,5.76321697]
[1747181251888,0.14216157,183.3,183.21,26.0]
[1747181252082,19.09542254,183.29,183.18,5.76321697]
[1747181252484,19.09542254,183.29,183.21,26.0]
[1747181253710,19.09542254,183.29,183.19,5.45878784]
[1747181253872,19.09542254,183.29,183.22,26.0]
[1747181254276,19.09542254,183.29,183.21,26.0]
[1747181255578,13.63958753,183.29,183.21,26.0]
[1747181256702,5.45553737,183.3,183.23,26.0]
[1747181257379,5.45464462,183.33,183.27,26.0]
[1747181258686,19.09125619,183.33,183.27,26.0]
[1747181262285,5.45464462,183.33,183.27,26.0]
[1747181262818,19.09125619,183.33,183.27,26.0]
[1747181265100,19.09125619,183.33,183.25,26.0]